bitfinex-derivatives/quotes_BTCF0:USTF0_20251215
["timestamp","ask_amount","ask_price","bid_price","bid_amount"]
[1765757013861,0.66632241,88282.0,88269.0,0.68772]
[1765757013862,0.011328,88270.0,88269.0,0.68772]
[1765757014060,0.3608,88275.0,88274.0,0.68772]
[1765757014458,0.00016992,88278.0,88277.0,0.68772]
[1765757015560,0.00016992,88278.0,88277.0,0.69072]
[1765757015861,0.32624992,88278.0,88277.0,0.69072]
[1765757016252,0.00116992,88278.0,88277.0,0.69072]
[1765757016953,0.00216992,88278.0,88277.0,0.69272]
[1765757017152,0.00014601,88282.0,88281.0,0.68772]
[1765757018252,0.00016992,88290.0,88289.0,0.68772]
[1765757018563,0.00016992,88290.0,88289.0,1.04852]
[1765757018747,0.011324,88301.0,88300.0,0.68772]
[1765757019058,0.0386294,88301.0,88300.0,0.68772]
[1765757019561,0.3637094,88301.0,88300.0,0.68772]
[1765757019966,0.6924794,88301.0,88300.0,0.68772]
[1765757020156,0.3667094,88301.0,88300.0,0.68872]
[1765757020359,0.0416294,88301.0,88300.0,0.68872]
[1765757020760,0.0436294,88301.0,88300.0,0.68972]
[1765757022468,0.6984794,88301.0,88300.0,0.68972]
[1765757022860,0.6984794,88301.0,88300.0,0.002]
[1765757023061,0.6984794,88301.0,88300.0,0.68972]
[1765757023359,0.69749783,88301.0,88300.0,0.68972]
[1765757023954,0.36872783,88301.0,88300.0,0.68972]
[1765757024158,0.03232383,88301.0,88300.0,0.68972]
[1765757026273,0.03232383,88301.0,88300.0,0.9016]
[1765757026462,0.00016992,88309.0,88308.0,0.699043]
[1765757026662,0.08094007,88325.0,88322.0,0.68772]
[1765757026663,0.0113212,88323.0,88322.0,0.68772]
[1765757027164,0.0113206,88327.0,88326.0,0.68772]
[1765757027467,0.6651706,88327.0,88326.0,0.68772]
[1765757028569,0.0133206,88327.0,88326.0,0.68872]
[1765757028965,0.6671706,88327.0,88326.0,0.68872]
[1765757029467,0.6701706,88327.0,88326.0,0.68972]
[1765757029878,0.005,88327.0,88326.0,1.05052]
[1765757030077,0.005,88327.0,88326.0,1.0618407]
[1765757030277,0.005,88327.0,88326.0,1.05052]
[1765757031282,0.004,88327.0,88326.0,1.04952]
[1765757031488,0.001,88327.0,88326.0,1.04852]
[1765757031682,0.002,88327.0,88326.0,1.04952]
[1765757031877,0.001,88327.0,88326.0,1.05052]
[1765757032279,0.0113199,88333.0,88326.0,0.72069]
[1765757032479,0.0113199,88333.0,88332.0,0.68772]
[1765757032786,0.00016992,88335.0,88334.0,0.68772]
[1765757032976,0.00016992,88335.0,88334.0,1.04852]
[1765757035296,0.00216992,88335.0,88334.0,1.04952]
[1765757035497,0.00316992,88335.0,88334.0,1.05052]
[1765757035794,0.65501992,88335.0,88334.0,0.68872]
[1765757035993,0.65501992,88335.0,88334.0,0.68972]
[1765757035994,0.65701992,88335.0,88334.0,0.68972]
[1765757036195,0.65601992,88335.0,88334.0,0.68972]
[1765757036488,0.00316992,88335.0,88334.0,1.05052]
[1765757036885,0.3608,88351.0,88334.0,1.05052]
[1765757036886,0.0113181,88347.0,88346.0,0.69737]
[1765757037895,0.3545881,88347.0,88346.0,0.69737]
[1765757038094,0.3625881,88347.0,88346.0,0.69937]
[1765757038286,0.6922481,88347.0,88346.0,0.002]
[1765757038688,0.71490416,88347.0,88346.0,0.001]
[1765757038888,0.6842491,88339.0,88338.0,0.00016982]
[1765757039088,0.6842509,88325.0,88324.0,1.05817]
[1765757039296,0.0113204,88329.0,88328.0,0.69737]
[1765757039496,0.6842497,88334.0,88333.0,0.69737]
[1765757039992,0.0113197,88334.0,88333.0,0.69737]
[1765757040182,0.0113197,88335.0,88334.0,0.69737]
[1765757040389,0.67293,88340.0,88339.0,0.69737]
[1765757040587,0.00016982,88342.0,88341.0,0.69737]
[1765757041188,0.00016982,88342.0,88341.0,1.05817]
[1765757041395,0.006,88347.0,88346.0,0.69737]
[1765757041797,0.0113178,88350.0,88349.0,0.69737]
[1765757042391,0.0113178,88350.0,88349.0,1.05817]
[1765757044106,0.0123178,88350.0,88349.0,1.05817]
[1765757044597,0.0143178,88350.0,88349.0,1.05917]
[1765757045098,0.003,88350.0,88349.0,1.05917]
[1765757045995,0.00016982,88358.0,88357.0,0.69737]
[1765757046193,0.87207,88350.0,88349.0,0.70122982]
[1765757046500,1.2441877,88350.0,88349.0,2e-08]
[1765757047003,0.6842498,88333.0,88332.0,0.3608]
[1765757047790,0.6842512,88322.0,88321.0,0.69737]
[1765757049107,0.00016982,88330.0,88329.0,0.69737]
[1765757049601,0.34343982,88330.0,88329.0,0.69737]
[1765757050502,0.87223982,88330.0,88329.0,0.69737]
[1765757050702,0.87323982,88330.0,88329.0,0.70937]
[1765757051099,0.6842523,88314.0,88313.0,0.00016982]
[1765757051304,0.6842523,88314.0,88313.0,0.33942982]
[1765757052192,0.6882523,88314.0,88313.0,0.69853982]
[1765757052398,0.004,88314.0,88313.0,0.69853982]
[1765757053200,0.004,88314.0,88313.0,0.69953982]
[1765757053201,0.01,88314.0,88313.0,0.69953982]
[1765757053802,0.00016982,88330.0,88329.0,0.69737]
[1765757054008,0.00016982,88330.0,88329.0,1.05817]
[1765757054394,0.35476002,88330.0,88329.0,1.05817]
[1765757054599,0.01149002,88330.0,88329.0,1.05817]
[1765757054794,0.0113182,88346.0,88345.0,0.69737]
[1765757054999,0.03754473,88346.0,88345.0,0.69737]
[1765757055413,0.02622653,88346.0,88345.0,0.69737]
[1765757055605,0.0113171,88355.0,88354.0,0.69737]
[1765757056310,0.03755171,88355.0,88354.0,0.69737]
[1765757056902,0.71548171,88355.0,88354.0,0.69837]
[1765757057111,0.04255171,88355.0,88354.0,0.69837]
[1765757057707,0.67793,88355.0,88354.0,0.69837]
[1765757057911,0.67793,88355.0,88354.0,0.34026]
[1765757058106,0.70417383,88355.0,88354.0,0.001]
[1765757058502,0.38051383,88355.0,88354.0,0.69937]
[1765757058698,0.03724383,88355.0,88354.0,0.69937]
[1765757058910,0.011,88355.0,88354.0,0.69937]
[1765757059112,0.013,88355.0,88354.0,0.69937]
[1765757059410,0.00016982,88363.0,88362.0,0.69737]
[1765757059917,0.3608,88372.0,88371.0,0.69737]
[1765757060110,0.38703532,88372.0,88371.0,0.69737]
[1765757060503,0.02623532,88372.0,88371.0,0.69737]
[1765757060699,0.3608,88379.0,88378.0,0.69737]
[1765757060903,0.00016972,88387.0,88386.0,0.69737]
[1765757061509,0.00016972,88387.0,88386.0,1.05817]
[1765757061905,0.34343972,88387.0,88386.0,0.69737]
[1765757062411,0.00016972,88387.0,88386.0,0.69737]
[1765757063312,0.00616972,88387.0,88386.0,0.69837]
[1765757063513,0.00916972,88387.0,88386.0,0.69937]
[1765757063707,0.67609972,88387.0,88386.0,0.69837]
[1765757063904,0.68009972,88387.0,88386.0,0.002]
[1765757064417,0.70726027,88387.0,88386.0,0.002]
[1765757065504,0.70726027,88387.0,88370.0,0.00016972]
[1765757065505,0.684245,88371.0,88370.0,0.00016972]
[1765757066101,0.71040437,88371.0,88370.0,0.00016972]
[1765757066812,0.71340437,88371.0,88370.0,0.00116972]
[1765757068117,0.71740437,88371.0,88370.0,0.00216972]
[1765757068710,0.03315937,88371.0,88370.0,0.66623972]
[1765757068916,0.007,88371.0,88370.0,0.66623972]
[1765757069416,0.70405,88371.0,88370.0,0.00216972]
[1765757069713,0.0113146,88374.0,88373.0,0.65838]
[1765757070121,0.3721145,88375.0,88374.0,0.65838]
[1765757070306,0.3608,88375.0,88374.0,0.65838]
[1765757070511,0.70405,88371.0,88370.0,0.00116972]
[1765757070706,0.70405,88371.0,88370.0,0.33473972]
[1765757071018,0.70405,88371.0,88370.0,0.65954972]
[1765757071809,0.70405,88371.0,88370.0,0.65854972]
[1765757072816,0.70505,88371.0,88370.0,0.65854972]
[1765757073219,0.70405,88371.0,88370.0,0.65854972]
[1765757073418,0.70805,88371.0,88370.0,0.65954972]
[1765757073721,0.004,88371.0,88370.0,0.65954972]
[1765757074227,0.70805,88371.0,88370.0,0.65954972]
[1765757074421,0.70805,88371.0,88370.0,0.00116972]
[1765757074608,0.73417217,88371.0,88370.0,0.00116972]
[1765757075324,0.70805,88371.0,88370.0,0.00116972]
[1765757079225,0.73418825,88371.0,88370.0,0.00116972]
[1765757079822,0.0113178,88350.0,88349.0,0.65838]
[1765757080311,0.7153678,88350.0,88347.0,0.3608]
[1765757080513,0.70405,88348.0,88347.0,0.3608]
[1765757080818,0.70405,88340.0,88339.0,0.00016972]
[1765757081018,0.7153689,88340.0,88339.0,0.65854972]
[1765757081720,0.0113189,88340.0,88339.0,0.65854972]
[1765757082123,0.3636789,88340.0,88339.0,0.65854972]
[1765757082723,0.3646789,88340.0,88339.0,0.67254972]
[1765757083324,0.3646789,88340.0,88339.0,0.68454972]
[1765757083531,0.3666789,88340.0,88339.0,0.68454972]
[1765757083830,0.0143189,88340.0,88339.0,0.68454972]
[1765757084232,0.0143189,88340.0,88339.0,0.68354972]
[1765757086035,0.7183689,88340.0,88339.0,0.68354972]
[1765757086328,0.7183689,88340.0,88339.0,0.02516972]
[1765757087120,0.7153701,88331.0,88330.0,0.3608]
[1765757087320,0.7153711,88323.0,88322.0,1.01918]
[1765757087534,0.0113211,88323.0,88322.0,1.01918]
[1765757089137,0.0113211,88323.0,88322.0,1.02018]
[1765757089138,0.0153211,88323.0,88322.0,1.02018]
[1765757089727,0.0203211,88323.0,88322.0,1.02118]
[1765757090431,0.009,88323.0,88322.0,1.02118]
[1765757091836,0.71305,88323.0,88322.0,1.02118]
[1765757092035,0.71305,88323.0,88322.0,0.002]
[1765757093139,1.07385,88323.0,88322.0,0.002]
[1765757093536,1.10002891,88323.0,88322.0,0.002]
[1765757094146,1.10002891,88323.0,88322.0,0.33557]
[1765757094350,1.10002891,88323.0,88322.0,0.66038]
[1765757094849,0.3698,88323.0,88322.0,0.66038]
[1765757095454,1.07385,88323.0,88322.0,0.66038]
[1765757096050,0.71305,88323.0,88322.0,0.002]
[1765757097154,0.009,88323.0,88322.0,0.67529]
[1765757098055,0.00016983,88331.0,88330.0,0.81586]
[1765757098255,0.00016983,88331.0,88330.0,1.17666]
[1765757099151,0.0113188,88341.0,88340.0,0.67056]
[1765757101249,0.0113183,88345.0,88330.0,0.64345634]
[1765757101457,0.00016983,88349.0,88348.0,0.67056]
[1765757102759,0.8776888,88341.0,88340.0,1.03152983]
[1765757103260,0.3438788,88341.0,88340.0,0.67072983]
[1765757103450,0.0113188,88341.0,88340.0,0.67072983]
[1765757104155,0.3438788,88341.0,88340.0,0.67072983]
[1765757104459,0.3528788,88341.0,88340.0,0.67272983]
[1765757105051,0.8866888,88341.0,88340.0,0.00216983]
[1765757105253,0.9129424,88341.0,88340.0,3e-08]
[1765757105454,0.9129424,88341.0,88322.0,0.3608]
[1765757105455,0.0113211,88323.0,88322.0,1.03136]
[1765757106162,0.0113211,88323.0,88312.0,0.63412]
[1765757106163,0.66346,88313.0,88312.0,0.69164]
[1765757106348,0.0113223,88315.0,88314.0,0.67056]
[1765757107556,0.0113223,88315.0,88314.0,0.33084]
[1765757107557,0.6747823,88315.0,88314.0,0.33084]
[1765757107949,0.6757823,88315.0,88314.0,0.33984]
[1765757108166,0.6787823,88315.0,88314.0,0.34084]
[1765757108455,0.6777823,88315.0,88314.0,0.001]
[1765757108647,0.6827823,88315.0,88314.0,0.002]
[1765757109157,0.70905741,88315.0,88314.0,0.002]
[1765757109363,1.06985741,88315.0,88314.0,0.002]
[1765757109761,0.6747834,88305.0,88304.0,0.00016983]
[1765757110057,0.70105851,88305.0,88304.0,0.00016983]
[1765757110249,0.70105851,88305.0,88304.0,0.33100983]
[1765757110453,0.02627511,88305.0,88304.0,0.67072983]
[1765757110757,0.0113228,88310.0,88309.0,0.67056]
[1765757110962,0.03760509,88310.0,88309.0,0.67056]
[1765757111265,0.37016509,88310.0,88309.0,0.67056]
[1765757111754,0.37016509,88310.0,88304.0,0.00216983]
[1765757111755,0.6747834,88305.0,88304.0,0.00216983]
[1765757111960,0.70101138,88305.0,88304.0,0.00016983]
[1765757112159,0.70101138,88305.0,88304.0,0.67072983]
[1765757112357,0.007,88310.0,88309.0,0.67056]
[1765757113462,0.004,88310.0,88309.0,0.67056]
[1765757113761,0.3721222,88315.0,88314.0,0.67056]
[1765757114362,1.06180287,88315.0,88314.0,0.33084]
[1765757114560,0.6747828,88310.0,88309.0,0.33284]
[1765757114860,0.6747828,88310.0,88309.0,0.33184]
[1765757115262,0.6747828,88310.0,88309.0,0.33084]
[1765757116258,0.6747834,88305.0,88304.0,0.00016983]
[1765757116464,0.70100764,88305.0,88304.0,0.00016983]
[1765757116965,0.66346,88302.0,88301.0,0.00013076]
[1765757117163,0.6896852,88302.0,88301.0,0.00013076]
[1765757117366,0.68968175,88302.0,88301.0,0.00013076]
[1765757117766,0.66346,88302.0,88301.0,0.33097076]
[1765757117961,0.68968182,88302.0,88301.0,0.33097076]
[1765757118158,0.66446,88302.0,88301.0,0.33197076]
[1765757119168,0.66446,88302.0,88301.0,0.67169076]
[1765757119370,0.69067388,88302.0,88301.0,0.67169076]
[1765757119569,0.69367388,88302.0,88301.0,0.67269076]
[1765757120272,0.66746,88302.0,88301.0,0.67269076]
[1765757120861,0.66746,88302.0,88301.0,0.33297076]
[1765757121560,0.004,88302.0,88301.0,0.67269076]
[1765757122069,0.33656,88302.0,88301.0,0.67269076]
[1765757122865,0.66746,88302.0,88301.0,0.67269076]
[1765757123066,0.66746,88302.0,88301.0,0.33297076]
[1765757123273,0.66746,88302.0,88301.0,0.00213076]
[1765757124062,0.66746,88302.0,88293.0,0.36096983]
[1765757124063,0.6747848,88294.0,88293.0,0.00016983]
[1765757124371,0.39832733,88294.0,88293.0,0.67072983]
[1765757124564,0.0113248,88294.0,88293.0,0.67072983]
[1765757125070,0.01144892,88294.0,88293.0,0.67072983]
[1765757125876,1.03570892,88294.0,88293.0,0.00016983]
[1765757126058,1.07290122,88294.0,88293.0,0.00216983]
[1765757126373,1.07290122,88294.0,88270.0,0.32993634]
[1765757126374,0.3696265,88282.0,88281.0,0.67753]
[1765757126676,0.7238665,88282.0,88281.0,0.67753]
[1765757127360,0.3583,88282.0,88281.0,0.67753]
[1765757127673,0.3583,88282.0,88277.0,0.0113269]
[1765757127674,0.9267754,88290.0,88289.0,0.67753]
[1765757129175,0.01544902,88294.0,88293.0,0.68258]
[1765757129377,0.01144902,88294.0,88293.0,0.68258]
[1765757129668,0.699836,88285.0,88284.0,1.04338]
[1765757129874,0.699836,88285.0,88284.0,0.68258]
[1765757131068,0.702836,88285.0,88284.0,0.68358]
[1765757131772,0.702836,88285.0,88284.0,0.001]
[1765757132368,0.706836,88285.0,88284.0,0.002]
[1765757133271,0.73304966,88285.0,88284.0,0.002]
[1765757134073,0.73004966,88285.0,88284.0,0.001]
[1765757134266,0.73304966,88285.0,88284.0,0.002]
[1765757136269,0.73304966,88285.0,88284.0,0.33797]
[1765757136978,0.73304966,88285.0,88284.0,0.002]
[1765757139567,0.007,88285.0,88284.0,0.68458]
[1765757140074,0.00012412,88294.0,88293.0,0.693905]
[1765757140285,0.00012412,88294.0,88293.0,1.054705]
[1765757140577,0.01144892,88294.0,88293.0,0.68258]
[1765757141570,0.00012412,88294.0,88293.0,0.68258]
[1765757141779,0.00412412,88294.0,88293.0,0.68358]
[1765757142970,0.3608,88323.0,88301.0,0.68258]
[1765757142971,0.21459,88317.0,88301.0,0.68258]
[1765757143180,0.0113227,88311.0,88310.0,0.68258]
[1765757143382,0.0113221,88316.0,88315.0,0.68258]
[1765757143875,0.03765452,88316.0,88315.0,0.68258]
[1765757144478,0.00016983,88324.0,88323.0,0.68258]
[1765757144677,0.00016983,88324.0,88323.0,1.04338]
[1765757144877,0.02649868,88324.0,88323.0,1.04338]
[1765757145269,0.00016983,88324.0,88323.0,1.04338]
[1765757146082,0.00216983,88324.0,88323.0,1.04438]
[1765757146379,0.00816983,88324.0,88323.0,0.68458]
[1765757146776,0.00816983,88324.0,88323.0,0.68358]
[1765757146981,0.00516983,88324.0,88323.0,0.68458]
[1765757148088,0.06083494,88352.0,88337.0,0.68258]
[1765757148379,0.0113186,88344.0,88343.0,0.68258]
[1765757148886,0.0113177,88350.0,88349.0,0.68258]
[1765757149081,0.94069638,88350.0,88349.0,0.68258]
[1765757149280,0.9144177,88350.0,88349.0,0.68258]
[1765757149890,0.3608,88352.0,88343.0,0.33697]
[1765757149891,0.33377,88344.0,88343.0,0.33697]
[1765757150085,0.68851,88344.0,88343.0,0.33597]
[1765757150485,0.6998284,88344.0,88343.0,0.68258]
[1765757150882,0.005,88350.0,88349.0,0.68258]
[1765757151089,0.008,88350.0,88349.0,0.68358]
[1765757151882,0.68851,88358.0,88357.0,0.68258]
[1765757152283,0.0113166,88358.0,88357.0,0.68258]
[1765757152783,0.6998266,88358.0,88357.0,0.68258]
[1765757152987,0.3450875,88351.0,88350.0,0.88045]
[1765757153184,0.0113175,88351.0,88350.0,0.88045]
[1765757153484,0.6998275,88351.0,88350.0,0.88045]
[1765757153881,0.3450875,88351.0,88350.0,0.88045]
[1765757154486,0.0113175,88351.0,88350.0,0.88045]
[1765757155291,0.3500875,88351.0,88350.0,0.88145]
[1765757155596,0.7048275,88351.0,88350.0,0.88145]
[1765757157989,0.7048275,88351.0,88350.0,0.001]
[1765757160288,0.69351,88351.0,88350.0,0.001]
[1765757160489,0.005,88351.0,88350.0,0.66711]
[1765757161289,0.68821,88351.0,88350.0,0.66711]
[1765757162090,0.68821,88351.0,88350.0,0.001]
[1765757163297,0.6945287,88342.0,88340.0,0.19787]
[1765757163990,0.6945287,88342.0,88341.0,0.66627983]
[1765757164191,0.68321,88342.0,88341.0,0.66627983]
[1765757164394,0.005,88351.0,88341.0,0.66627983]
[1765757164395,0.3460076,88351.0,88350.0,0.66611]
[1765757164788,0.6965276,88351.0,88350.0,0.66611]
[1765757165096,0.0113187,88342.0,88341.0,0.66827983]
[1765757165293,0.6945287,88342.0,88341.0,0.66827983]
[1765757165495,0.6945287,88342.0,88341.0,0.00016983]
[1765757165697,1.0553287,88342.0,88341.0,0.00016983]
[1765757166293,1.0553287,88342.0,88341.0,0.00116983]
[1765757166686,0.6945287,88342.0,88341.0,0.00116983]
[1765757166894,1.0553287,88342.0,88341.0,0.00116983]
[1765757167283,1.0815109,88342.0,88341.0,0.00116983]
[1765757167497,1.0593287,88342.0,88341.0,0.00216983]
[1765757167794,1.08551085,88342.0,88341.0,0.00116983]
[1765757167995,1.08951085,88342.0,88341.0,0.00216983]
[1765757168198,1.08553127,88342.0,88341.0,0.00116983]
[1765757168395,1.09053127,88342.0,88341.0,0.00216983]
[1765757168587,1.08953127,88342.0,88341.0,0.00116983]
[1765757169101,0.72073127,88342.0,88341.0,0.66627983]
[1765757169304,0.72873127,88342.0,88341.0,0.66727983]
[1765757169492,1.08953127,88342.0,88341.0,0.66727983]
[1765757169692,1.08653127,88342.0,88341.0,0.00116983]
[1765757169901,1.08953127,88342.0,88341.0,0.00116983]
[1765757170598,1.08453127,88342.0,88341.0,0.00016983]
[1765757170795,1.08953127,88342.0,88341.0,0.00116983]
[1765757171901,1.08653127,88342.0,88341.0,0.00116983]
[1765757172091,1.08953127,88342.0,88341.0,0.00116983]
[1765757173192,1.80165127,88342.0,88341.0,0.00116983]
[1765757176303,1.08953127,88342.0,88341.0,0.66727983]
[1765757176503,1.80165127,88342.0,88341.0,0.66727983]
[1765757176703,1.44085127,88342.0,88341.0,0.66727983]
[1765757177602,0.36689257,88342.0,88341.0,0.66727983]
[1765757177804,0.03420257,88342.0,88341.0,0.66727983]
[1765757179306,0.71741257,88342.0,88341.0,0.00116983]
[1765757180803,0.71741257,88342.0,88341.0,0.66727983]
[1765757181510,0.71741257,88342.0,88341.0,0.00116983]
[1765757187815,1.07821257,88342.0,88341.0,0.00116983]
[1765757188612,1.13904751,88342.0,88341.0,0.00116983]
[1765757189213,1.07821257,88342.0,88341.0,0.00116983]
[1765757190811,0.39500257,88342.0,88320.0,0.19458]
[1765757191004,0.67721,88321.0,88320.0,0.89082]
[1765757191205,0.70341257,88321.0,88320.0,0.89082]
[1765757191404,0.71473397,88321.0,88320.0,0.89082]
[1765757192226,0.71473397,88321.0,88320.0,0.89282]
[1765757193510,0.71873397,88321.0,88320.0,0.89182]
[1765757193819,0.72073397,88321.0,88320.0,0.89182]
[1765757194820,0.03220257,88321.0,88320.0,0.89182]
[1765757195013,0.00016983,88329.0,88328.0,0.90334]
[1765757195209,0.68870023,88329.0,88328.0,0.90334]
[1765757195410,0.68870023,88329.0,88328.0,0.34322]
[1765757195609,0.68870023,88329.0,88328.0,0.90334]
[1765757195811,0.6885314,88321.0,88320.0,0.89182]
[1765757196121,0.6885314,88321.0,88320.0,0.89082]
[1765757197119,0.6915314,88321.0,88320.0,0.89182]
[1765757197617,0.3644414,88321.0,88320.0,0.89182]
[1765757198023,0.004,88321.0,88320.0,0.89182]
[1765757198218,0.68121,88321.0,88320.0,0.89182]
[1765757198419,0.67821,88321.0,88320.0,0.89082]
[1765757198617,0.67821,88321.0,88320.0,0.001]
[1765757198618,0.68121,88321.0,88320.0,0.001]
[1765757198917,1.04201,88321.0,88320.0,0.001]
[1765757199319,1.04201,88321.0,88310.0,0.3608]
[1765757199320,0.67721,88313.0,88310.0,0.3608]
[1765757199512,1.7614524,88313.0,88300.0,0.3608]
[1765757199718,1.4006524,88313.0,88290.0,0.40569243]
[1765757199912,1.7614524,88313.0,88295.0,0.3608]
[1765757200520,0.6885345,88297.0,88296.0,0.90334]
[1765757201310,0.6885345,88297.0,88295.0,0.3608]
[1765757201511,0.67731665,88296.0,88295.0,0.3608]
[1765757201711,0.67721,88291.0,88290.0,0.2071]
[1765757201918,0.67721,88288.0,88287.0,0.69640983]
[1765757202121,0.67721,88288.0,88287.0,0.00016983]
[1765757202922,0.67721,88288.0,88287.0,0.34338983]
[1765757203119,0.67721,88288.0,88287.0,0.69640983]
[1765757203324,0.67821,88288.0,88287.0,0.70940983]
[1765757203830,0.67921,88288.0,88287.0,0.72340983]
[1765757204822,0.002,88288.0,88287.0,0.72340983]
[1765757208829,0.67921,88288.0,88287.0,0.72340983]
[1765757209629,0.002,88288.0,88287.0,0.72340983]
[1765757210931,0.00010665,88296.0,88295.0,0.69624]
[1765757210932,0.34922665,88296.0,88295.0,0.69624]
[1765757211136,0.02604944,88296.0,88295.0,0.69624]
[1765757211320,0.03737404,88296.0,88295.0,0.69624]
[1765757211525,0.01143125,88296.0,88295.0,0.69624]
[1765757212133,0.01143125,88296.0,88295.0,0.70624]
[1765757212334,0.01243125,88296.0,88295.0,0.70624]
[1765757212534,0.01343125,88296.0,88295.0,0.71924]
[1765757213736,0.00210665,88296.0,88295.0,0.71924]
[1765757214342,0.01343125,88296.0,88295.0,0.71924]
[1765757214934,0.00210665,88296.0,88295.0,0.71924]
[1765757217138,0.00016983,88305.0,88304.0,0.89562]
[1765757217535,0.3608,88311.0,88310.0,0.68035]
[1765757217738,0.3608,88322.0,88321.0,0.68035]
[1765757218035,0.3371606,88327.0,88326.0,0.21527]
[1765757218238,0.70421767,88327.0,88326.0,0.89562]
[1765757218423,0.70421767,88327.0,88326.0,0.68035]
[1765757218628,0.02593707,88327.0,88320.0,0.21527]
[1765757218942,0.3608,88332.0,88331.0,0.68035]
[1765757219129,0.3867373,88332.0,88331.0,0.68035]
[1765757219327,0.6782798,88334.0,88333.0,0.68035]
[1765757219639,0.70421821,88334.0,88333.0,0.68035]
[1765757221025,0.00016983,88335.0,88334.0,0.68035]
[1765757221439,0.32600983,88335.0,88334.0,0.68035]
[1765757222146,0.32600983,88335.0,88334.0,0.68135]
[1765757222147,0.68044943,88335.0,88334.0,0.68135]
[1765757222634,0.68044943,88335.0,88334.0,0.001]
[1765757222835,0.6782816,88319.0,88318.0,0.33384983]
[1765757223042,1.0390816,88319.0,88318.0,0.33384983]
[1765757223435,1.0390816,88319.0,88318.0,0.00016983]
[1765757223638,1.06503319,88319.0,88318.0,0.00016983]
[1765757224833,0.32584,88296.0,88295.0,1.04115]
[1765757225230,0.678283,88308.0,88307.0,0.68035]
[1765757225534,0.70512922,88308.0,88307.0,0.68035]
[1765757225934,0.36400922,88308.0,88307.0,0.68035]
[1765757226129,0.02684622,88308.0,88307.0,0.68035]
[1765757226736,0.02684622,88308.0,88307.0,0.68335]
[1765757227446,0.69380622,88308.0,88307.0,0.003]
[1765757227938,0.69480622,88308.0,88307.0,0.003]
[1765757228134,0.32584,88301.0,88300.0,0.89562]
[1765757228334,0.69380622,88301.0,88300.0,0.89562]
[1765757229037,0.35268622,88301.0,88300.0,0.89562]
[1765757229544,0.35268622,88301.0,88300.0,0.89962]
[1765757230235,0.35368622,88301.0,88300.0,0.90062]
[1765757230629,0.69480622,88301.0,88300.0,0.90062]
[1765757230828,0.02784622,88301.0,88300.0,0.90062]
[1765757232343,0.001,88301.0,88300.0,0.90062]
[1765757232936,0.01149193,88316.0,88315.0,0.68035]
[1765757233449,0.67845193,88316.0,88315.0,0.68035]
[1765757234040,0.68045193,88316.0,88315.0,0.68135]
[1765757234755,0.68045193,88316.0,88315.0,0.68235]
[1765757236550,0.00216983,88316.0,88315.0,0.68235]
[1765757236747,0.36641933,88329.0,88328.0,0.33368]
[1765757236748,0.3721204,88329.0,88328.0,0.33368]
[1765757236955,1.0390804,88329.0,88328.0,0.68035]
[1765757237761,1.0390804,88329.0,88326.0,0.56194]
[1765757237762,0.66696,88327.0,88326.0,0.56194]
[1765757238252,0.66696,88327.0,88326.0,1.24229]
[1765757239050,0.66796,88327.0,88326.0,0.89562]
[1765757239846,0.001,88327.0,88326.0,0.89562]
[1765757240253,0.004,88327.0,88326.0,0.89662]
[1765757241053,0.3608,88329.0,88328.0,0.68035]
[1765757241445,1.038,88332.0,88331.0,0.68035]
[1765757242552,0.66696,88329.0,88328.0,0.001]
[1765757242855,0.66696,88329.0,88328.0,0.68135]
[1765757243952,0.66696,88329.0,88328.0,0.68035]
[1765757244262,0.35257774,88329.0,88328.0,0.68035]
[1765757244453,0.35457774,88329.0,88328.0,0.68035]
[1765757244750,0.35557774,88329.0,88328.0,0.68035]
[1765757244957,0.35557774,88329.0,88326.0,0.21527]
[1765757244958,0.66696,88327.0,88326.0,0.21527]
[1765757245156,0.69369774,88327.0,88326.0,0.89562]
[1765757245659,0.69369774,88327.0,88323.0,0.3608]
[1765757245660,0.66696,88324.0,88323.0,0.3608]
[1765757245854,0.69369774,88324.0,88323.0,0.3608]
[1765757247745,1.40577774,88324.0,88323.0,0.3608]
[1765757247953,1.40877774,88324.0,88323.0,1.04745]
[1765757248154,1.40977774,88324.0,88323.0,1.04745]
[1765757248844,1.40677774,88324.0,88323.0,1.04645]
[1765757249052,1.40977774,88324.0,88323.0,1.04745]
[1765757249256,0.03073774,88324.0,88323.0,1.04745]
[1765757249558,0.27973007,88344.0,88336.0,0.89293]
[1765757249559,0.3608,88338.0,88336.0,0.89293]
[1765757249750,0.02691321,88337.0,88336.0,0.89293]
[1765757250762,0.03191321,88337.0,88336.0,0.89393]
[1765757251650,0.02891321,88337.0,88336.0,0.89393]
[1765757252159,0.02891321,88337.0,88336.0,0.89493]
[1765757252659,0.71973321,88337.0,88336.0,0.89493]
[1765757253159,0.71973321,88337.0,88336.0,0.33515]
[1765757253363,0.71773321,88337.0,88336.0,0.001]
[1765757253960,0.71773321,88337.0,88336.0,0.67946]
[1765757254755,0.72073321,88337.0,88336.0,0.67846]
[1765757254952,0.02991321,88337.0,88336.0,0.67846]
[1765757256363,0.02306274,88337.0,88336.0,0.67846]
[1765757256566,0.71196,88351.0,88350.0,0.67846]
[1765757256867,0.3608,88356.0,88350.0,0.67846]
[1765757256868,0.3608,88356.0,88355.0,0.67846]
[1765757258158,0.3608,88356.0,88355.0,0.67946]
[1765757258765,0.00016983,88364.0,88363.0,0.67846]
[1765757260567,0.33905983,88364.0,88363.0,0.67846]
[1765757260970,0.33905983,88364.0,88363.0,0.68046]
[1765757261160,0.33905983,88364.0,88363.0,0.68146]
[1765757261564,0.00016983,88364.0,88363.0,0.68146]
[1765757262561,0.69098983,88364.0,88363.0,0.003]
[1765757263565,0.69098983,88364.0,88363.0,0.002]
[1765757263765,0.69082,88354.0,88353.0,0.89293]
[1765757264871,0.33889,88354.0,88353.0,0.89293]
[1765757265365,0.33889,88354.0,88353.0,0.89493]
[1765757266270,0.69082,88354.0,88353.0,0.89493]
[1765757267372,0.00016983,88364.0,88353.0,0.89493]
[1765757267373,0.69098983,88364.0,88363.0,0.67846]
[1765757267673,0.33905983,88364.0,88363.0,0.67846]
[1765757267972,0.00016983,88364.0,88363.0,0.67846]
[1765757268573,0.0287902,88364.0,88363.0,0.67846]